fUSD/lending_fUSD_20241101
["ID","MTS","AMOUNT","RATE_DAILY","PERIOD"]
[341154608,1730479381015,-1400.36,0.00047397,120]
[341154609,1730479381036,-500.0,0.00047407,30]
[341154610,1730479381060,-1400.36,0.00047671,120]
[341154611,1730479381083,-500.0,0.00047873,30]
[341154612,1730479381106,-1400.36,0.00047945,120]
[341154613,1730479381129,-1011.46,0.00048035,105]
[341154614,1730479381152,-159.53,0.0004816,120]
[341154615,1730479381176,-152.45,0.000482,45]
[341154616,1730479381200,-152.45,0.000482,45]
[341154617,1730479381224,-152.45,0.000482,45]
[341154618,1730479381253,-152.45,0.000482,45]
[341154619,1730479381276,-152.45,0.000482,45]
[341154620,1730479381301,-152.45,0.000482,45]
[341154621,1730479381324,-152.45,0.000482,45]
[341154622,1730479381348,-152.45,0.000482,45]
[341154623,1730479381373,-152.45,0.000482,45]
[341154624,1730479381395,-500.0,0.00048277,30]
[341154625,1730479381417,-513.6485332,0.00048297,30]
[341154626,1730479381442,-160.0,0.000484,120]
[341154627,1730479381464,-228.0,0.000484,30]
[341154628,1730479381489,-150.0,0.0004848,30]
[341154629,1730479381512,-50000.0,0.000485,32]
[341154630,1730479381534,-39893.0,0.000485,120]
[341154631,1730479381559,-500.0,0.000485,32]
[341154632,1730479381581,-500.0,0.000485,32]
[341154633,1730479381605,-500.0,0.000485,32]
[341154634,1730479381628,-500.0,0.000485,32]
[341154635,1730479381652,-500.0,0.000485,32]
[341154636,1730479381674,-500.0,0.000485,32]
[341154637,1730479381699,-1000.0,0.00048767,120]
[341154638,1730479381725,-150.0,0.00048817,30]
[341154639,1730479381749,-2103.60705931,0.00049,30]
[341154640,1730479381775,-1000.0,0.00049,120]
[341154641,1730479381799,-50000.0,0.00049,32]
[341154642,1730479381826,-310.47917395,0.00049,120]
[341154643,1730479381850,-123835.68225467,0.00049,30]
[341154644,1730479381873,-1067.09928,0.00049088,30]
[341154645,1730479381898,-157.110106,0.00049098,120]
[341154646,1730479381923,-1011.46,0.0004917,113]
[341154647,1730479381950,-157.110106,0.00049198,120]
[341154648,1730479381974,-53746.82878572,0.000492,60]
[341154649,1730479381998,-150.0,0.00049238,30]
[341154650,1730479382020,-619.9170568,0.00049286,30]
[341154651,1730479382041,-500.0,0.00049287,120]
[341154652,1730479382066,-500.0,0.00049287,120]
[341154653,1730479382090,-500.0,0.00049287,120]
[341154654,1730479382115,-443.66649536,0.00049287,120]
[341154655,1730479382139,-1067.09928,0.00049288,30]
[341154656,1730479382165,-157.110106,0.00049298,120]
[341154657,1730479382188,-637.25136797,0.00049299,120]
[341154658,1730479382211,-343.78099422,0.00049299,120]
[341154659,1730479382237,-500.0,0.00049315,120]
[341154660,1730479382262,-500.0,0.00049315,120]
[341154661,1730479382284,-500.0,0.00049315,120]
[341154662,1730479382306,-500.0,0.00049315,120]
[341154663,1730479382329,-500.0,0.00049315,120]
[341154664,1730479382353,-500.0,0.00049315,120]
[341154665,1730479382376,-500.0,0.00049315,120]
[341154666,1730479382399,-500.0,0.00049315,120]
[341154667,1730479382422,-500.0,0.00049315,120]
[341154668,1730479382445,-500.0,0.00049315,120]
[341154669,1730479382580,-500.0,0.00049315,120]
[341154670,1730479382603,-167.98642587,0.00049315,120]
[341154671,1730479382626,-512.7,0.00049315,120]
[341154672,1730479382648,-1000.0,0.00049315,120]
[341154673,1730479382669,-1500.0,0.00049315,120]
[341154674,1730479382691,-939.0,0.00049317,30]
[341154675,1730479382714,-500.0,0.00049321,120]
[341154676,1730479382738,-500.0,0.00049321,120]
[341154677,1730479382762,-500.0,0.00049321,120]
[341154678,1730479382789,-500.0,0.00049321,120]
[341154679,1730479382815,-500.0,0.00049321,120]
[341154680,1730479382837,-500.0,0.00049321,120]
[341154681,1730479382861,-500.0,0.00049321,120]
[341154682,1730479382884,-500.0,0.00049321,120]
[341154683,1730479382907,-611.66910282,0.00049321,120]
[341154684,1730479382930,-500.0,0.00049321,120]
[341154685,1730479382953,-1187.92,0.00049321,120]
[341154686,1730479382976,-500.0,0.00049321,120]
[341154687,1730479383003,-500.0,0.0004933,120]
[341154688,1730479383026,-159.545,0.0004937,30]
[341154689,1730479383049,-157.110106,0.00049398,120]
[341154690,1730479383072,-477.35,0.0004947,120]
[341154691,1730479383098,-500.0,0.0004947,120]
[341154692,1730479383124,-2538.71,0.0004947,120]
[341154693,1730479383148,-500.0,0.0004947,120]
[341154694,1730479383172,-500.0,0.0004947,120]
[341154695,1730479383196,-500.0,0.0004947,120]
[341154696,1730479383218,-500.0,0.0004947,120]
[341154697,1730479383252,-500.0,0.0004947,120]
[341154698,1730479383276,-500.0,0.0004947,120]
[341154699,1730479383299,-500.0,0.0004947,120]
[341154700,1730479383323,-500.0,0.0004947,120]
[341154701,1730479383348,-999.0,0.00049479,120]
[341154702,1730479383371,-151.0,0.0004948,120]
[341154703,1730479383394,-151.0,0.0004948,120]
[341154704,1730479383417,-158.167271,0.0004948,30]
[341154705,1730479383441,-151.0,0.0004948,120]
[341154706,1730479383465,-151.0,0.0004948,120]
[341154707,1730479383493,-151.0,0.0004948,120]
[341154708,1730479383516,-151.0,0.0004948,120]
[341154709,1730479383539,-151.0,0.0004948,120]
[341154710,1730479383562,-151.0,0.0004948,120]
[341154711,1730479383586,-155.37192,0.0004948,120]
[341154712,1730479383609,-151.0,0.0004948,120]
[341154713,1730479383633,-151.0,0.0004948,120]
[341154714,1730479383656,-286.33311,0.0004948,120]
[341154715,1730479383679,-151.0,0.0004948,120]
[341154716,1730479383702,-152.038753,0.0004948,120]
[341154717,1730479383725,-151.0,0.0004948,120]
[341154718,1730479383750,-151.0,0.0004948,120]
[341154719,1730479383776,-151.0,0.0004948,120]
[341154720,1730479383799,-297.812447,0.0004948,120]
[341154721,1730479383822,-151.0,0.0004948,120]
[341154722,1730479383846,-154.127626,0.0004948,120]
[341154723,1730479383870,-151.0,0.0004948,120]
[341154724,1730479383894,-151.0,0.0004948,120]
[341154725,1730479383918,-151.0,0.0004948,120]
[341154726,1730479383943,-151.0,0.0004948,120]
[341154727,1730479383968,-151.0,0.0004948,120]
[341154728,1730479383996,-151.0,0.0004948,120]
[341154729,1730479384020,-151.0,0.0004948,120]
[341154730,1730479384043,-151.0,0.0004948,120]
[341154731,1730479384066,-151.0,0.0004948,120]
[341154732,1730479384090,-151.0,0.0004948,120]
[341154733,1730479384114,-274.90975,0.0004948,120]
[341154734,1730479384138,-274.90975,0.0004948,120]
[341154735,1730479384161,-1067.09928,0.00049488,30]
[341154736,1730479384185,-150.0,0.0004949,30]
[341154737,1730479384210,-157.110106,0.00049498,120]
[341154738,1730479384233,-50000.0,0.000495,33]
[341154739,1730479384257,-641.0,0.000495,30]
[341154740,1730479384280,-150.5,0.0004957,30]
[341154741,1730479384302,-150.5,0.0004958,30]
[341154742,1730479384324,-2500.0,0.00049589,30]
[341154743,1730479384347,-150.5,0.0004959,30]
[341154744,1730479384371,-500.0,0.00049595,120]
[341154745,1730479384393,-500.0,0.00049595,120]
[341154746,1730479384416,-500.0,0.00049595,120]
[341154747,1730479384440,-500.0,0.00049595,120]
[341154748,1730479384463,-500.0,0.00049595,120]
[341154749,1730479384490,-500.0,0.00049595,120]
[341154750,1730479384513,-500.0,0.00049595,120]
[341154751,1730479384537,-500.0,0.00049595,120]
[341154752,1730479384560,-500.0,0.00049595,120]
[341154753,1730479384584,-1187.92,0.00049595,120]
[341154754,1730479384608,-500.0,0.00049595,120]
[341154755,1730479384631,-19894.69811441,0.000496,120]
[341154756,1730479384655,-500.0,0.00049604,120]
[341154757,1730479384678,-1067.09928,0.00049688,30]
[341154758,1730479384703,-2538.71,0.00049744,120]
[341154759,1730479384726,-293.52557147,0.00049744,120]
[341154760,1730479384752,-150.0,0.0004977,30]
[341154761,1730479384777,-233.61426626,0.00049816,120]
[341154762,1730479384799,-2500.0,0.00049863,30]
[341154763,1730479384823,-1000.0,0.00049863,120]
[341154764,1730479384847,-500.0,0.00049869,120]
[341154765,1730479384870,-500.0,0.00049869,120]
[341154766,1730479384892,-500.0,0.00049869,120]
[341154767,1730479384915,-500.0,0.00049869,120]
[341154768,1730479384937,-500.0,0.00049869,120]
[341154769,1730479384960,-500.0,0.00049869,120]
[341154770,1730479384987,-500.0,0.00049869,120]
[341154771,1730479385010,-500.0,0.00049869,120]
[341154772,1730479385033,-500.0,0.00049869,120]
[341154773,1730479385055,-1187.92,0.00049869,120]
[341154774,1730479385178,-500.0,0.00049869,120]
[341154775,1730479385204,-1000.0,0.00049874,45]
[341154776,1730479385227,-500.0,0.00049878,120]
[341154777,1730479385251,-5796.39770632,0.000499,60]
[341154778,1730479385274,-10738.37990141,0.000499,30]
[341154779,1730479385297,-202.45851065,0.00049993,120]
[341154780,1730479385322,-50000.0,0.0005,50]
[341154781,1730479385345,-178.0488635,0.0005,120]
[341154782,1730479385368,-150.0,0.0005,120]
[341154783,1730479385392,-300.0,0.0005,120]
[341154784,1730479385414,-150.0,0.0005,120]
[341154785,1730479385437,-1678.94980829,0.0005,120]
[341154786,1730479385460,-55000.0,0.0005,36]
[341154787,1730479385482,-155.0,0.0005,120]
[341154788,1730479385507,-155.0,0.0005,120]
[341154789,1730479385531,-794.48351808,0.0005,30]
[341154790,1730479385554,-1107.0771299,0.0005,120]
[341154791,1730479385577,-72199.90122509,0.0005,30]
[341154792,1730479385599,-15000.0,0.0005,120]
[341154793,1730479385623,-2073.67,0.0005,120]
[341154794,1730479385645,-1532.82248038,0.0005,60]
[341154795,1730479385668,-1233.6248764,0.0005,120]
[341154796,1730479385690,-992.39106492,0.0005,120]
[341154797,1730479385712,-169129.59588841,0.0005,120]
[341154798,1730479385734,-3873.03619754,0.0005,120]
[341154799,1730479385757,-500.0,0.0005,30]
[341154800,1730479385784,-11436.80373382,0.0005,32]
[341154801,1730479385806,-591.5763718,0.0005,51]
[341154802,1730479385829,-151.0,0.0005,120]
[341154803,1730479385853,-1209.27,0.0005,120]
[341154804,1730479385877,-459.53,0.0005,120]
[341154805,1730479385900,-1698.09,0.0005,120]
[341154806,1730479385925,-151.0,0.0005,120]
[341154807,1730479385949,-151.0,0.0005,120]
[341154808,1730479385974,-12499.99,0.0005,120]
[341154809,1730479385998,-151.0,0.0005,120]
[341154810,1730479386020,-151.0,0.0005,120]
[341154811,1730479386042,-151.0,0.0005,120]
[341154812,1730479386064,-500.0,0.0005,120]
[341154813,1730479386088,-500.0,0.0005,120]
[341154814,1730479386113,-151.0,0.0005,120]
[341154815,1730479386137,-1166.27,0.0005,60]
[341154816,1730479386163,-151.0,0.0005,120]
[341154817,1730479386185,-151.0,0.0005,120]
[341154818,1730479386209,-274.90975,0.0005,120]
[341154819,1730479386234,-2538.71,0.00050018,120]
[341154820,1730479386259,-1067.09928,0.00050088,30]
[341154821,1730479386281,-2500.0,0.00050137,30]
[341154822,1730479386304,-500.0,0.00050143,120]
[341154823,1730479386329,-500.0,0.00050143,120]
[341154824,1730479386352,-500.0,0.00050143,120]
[341154825,1730479386375,-500.0,0.00050143,120]
[341154826,1730479386398,-500.0,0.00050143,120]
[341154827,1730479386421,-500.0,0.00050143,120]
[341154828,1730479386445,-500.0,0.00050143,120]
[341154829,1730479386469,-500.0,0.00050143,120]
[341154830,1730479386498,-500.0,0.00050143,120]
[341154831,1730479386521,-1187.92,0.00050143,120]
[341154832,1730479386544,-500.0,0.00050143,120]
[341154833,1730479386567,-500.0,0.00050152,120]
[341154834,1730479386590,-999.0,0.00050164,120]
[341154835,1730479386612,-1067.09928,0.00050288,30]
[341154836,1730479386637,-2538.71,0.00050292,120]
[341154837,1730479386659,-1082.77308,0.00050305,120]
[341154838,1730479386681,-511.52680648,0.00050332,60]
[341154839,1730479386704,-1000.0,0.0005041,120]
[341154840,1730479386726,-2500.0,0.00050411,30]
[341154841,1730479386757,-500.0,0.00050417,120]
[341154842,1730479386781,-500.0,0.00050417,120]
[341154843,1730479386804,-500.0,0.00050417,120]
[341154844,1730479386829,-500.0,0.00050417,120]
[341154845,1730479386853,-500.0,0.00050417,120]
[341154846,1730479386876,-500.0,0.00050417,120]
[341154847,1730479386899,-500.0,0.00050417,120]
[341154848,1730479386920,-500.0,0.00050417,120]
[341154849,1730479386943,-500.0,0.00050417,120]
[341154850,1730479386966,-1187.92,0.00050417,120]
[341154851,1730479386995,-500.0,0.00050417,120]
[341154852,1730479387020,-500.0,0.00050426,120]
[341154853,1730479387042,-1067.09928,0.00050488,30]
[341154854,1730479387065,-150.11011,0.00050498,120]
[341154855,1730479387088,-219.65372397,0.000505,30]
[341154856,1730479387111,-174.19267148,0.000505,30]
[341154857,1730479387133,-246.28549664,0.000505,30]
[341154858,1730479387156,-188.89063992,0.000505,30]
[341154859,1730479387178,-641.0,0.000505,30]
[341154860,1730479387201,-1166.27,0.000505,60]
[341154861,1730479387223,-500.0,0.00050508,60]
[341154862,1730479387256,-2538.71,0.00050566,120]
[341154863,1730479387279,-175.31,0.00050593,120]
[341154864,1730479387301,-2500.0,0.00050685,30]
[341154865,1730479387324,-1067.09928,0.00050688,30]
[341154866,1730479387347,-500.0,0.00050691,120]
[341154867,1730479387369,-500.0,0.00050691,120]
[341154868,1730479387392,-435.6,0.00050691,120]
[341154869,1730479387416,-1187.92,0.00050691,120]
[341154870,1730479387440,-500.0,0.00050691,120]
[341154871,1730479387464,-500.0,0.000507,120]
[341154872,1730479387494,-152.45,0.000508,48]
[341154873,1730479387518,-152.45,0.000508,48]
[341154874,1730479387543,-152.45,0.000508,48]
[341154875,1730479387566,-152.45,0.000508,48]
[341154876,1730479387590,-152.45,0.000508,48]
[341154877,1730479387614,-152.45,0.000508,48]
[341154878,1730479387752,-152.45,0.000508,48]
[341154879,1730479387778,-152.45,0.000508,48]
[341154880,1730479387802,-152.45,0.000508,48]
[341154881,1730479387826,-152.45,0.000508,48]
[341154882,1730479387850,-152.45,0.000508,48]
[341154883,1730479387875,-152.45,0.000508,48]
[341154884,1730479387899,-152.45,0.000508,48]
[341154885,1730479387923,-152.45,0.000508,48]
[341154886,1730479387948,-152.45,0.000508,48]
[341154887,1730479387973,-152.45,0.000508,48]
[341154888,1730479387999,-152.45,0.000508,48]
[341154889,1730479388023,-152.45,0.000508,48]
[341154890,1730479388049,-2538.71,0.0005084,120]
[341154891,1730479388074,-999.0,0.00050849,120]
[341154892,1730479388096,-2914.48889928,0.00050858,120]
[341154893,1730479388119,-1000.0,0.00050958,120]
[341154894,1730479388141,-2000.0,0.00050959,60]
[341154895,1730479388164,-500.0,0.00050965,120]
[341154896,1730479388191,-500.0,0.00050965,120]
[341154897,1730479388217,-1187.92,0.00050965,120]
[341154898,1730479388242,-500.0,0.00050965,120]
[341154899,1730479388265,-442.3313322,0.00050974,120]
[341154900,1730479388290,-30045.52076933,0.00051,51]
[341154903,1730479639111,-350.0,0.00021,2]
[341154904,1730479639134,-348.01465086,0.00023,2]
[341154905,1730479643150,-51.98534914,0.00023,2]
[341154906,1730479643172,-148.43016343,0.00025,2]
[341154907,1730479644131,-301.56983657,0.00025,2]
[341154908,1730479644151,-500.0,0.00027,2]
[341154909,1730479644177,-308.04419835,0.00028354,2]
[341154910,1730479644205,-237.3705,0.00028454,2]
[341154911,1730479644225,-150.99,0.00028454,2]
[341154912,1730479644246,-789.13,0.00028454,2]
[341154913,1730479644265,-3551.92,0.00028454,2]
[341154914,1730479644285,-3969.96632561,0.00028454,2]
[341154915,1730479650099,-9129.16750517,0.00028454,2]
[341154916,1730479701343,270.66487517,0.00017605,2]
[341154918,1730479702622,157.78,0.00015342,2]
[341154919,1730479756116,-163.2105,0.000282,2]
[341154920,1730479756136,-160.13,0.00028596,2]
[341154921,1730479756158,-550.0,0.00029,2]
[341154922,1730479756177,-169.65,0.00029,2]
[341154923,1730479756196,-299.99,0.00029,12]
[341154924,1730479756215,-1210.90096398,0.00029,2]
[341154925,1730479758121,-12145.87724891,0.00029,2]
[341154926,1730479758140,-308.04419834,0.00029899,2]
[341154927,1730479758160,-1874.0,0.00029999,2]
[341154928,1730479758180,-300.0,0.0003,2]
[341154929,1730479758200,-207.2215,0.0003,2]
[341154930,1730479758219,-151.0,0.0003,120]
[341154931,1730479758239,-178.643,0.0003,2]
[341154932,1730479758262,-184.39,0.0003017,2]
[341154933,1730479758282,-600.0,0.00031,2]
[341154934,1730479758301,-150.0,0.00034548,10]
[341154935,1730479758321,-849.58,0.00034899,2]
[341154936,1730479758340,-300.0,0.00035,2]
[341154937,1730479758359,-150.0,0.0003577,2]
[341154938,1730479758378,-250.0,0.00035798,2]
[341154939,1730479758398,-1098.4,0.00036315,2]
[341154940,1730479758417,-8643.23,0.00036573,2]
[341154941,1730479758436,-207.2215,0.00036578,2]
[341154942,1730479758457,-250.0,0.00036662,120]
[341154943,1730479758476,-250.0,0.00036749,2]
[341154944,1730479758496,-12031.19539275,0.0003678,2]
[341154945,1730479768283,-6193.24214832,0.0003678,2]
[341154946,1730479823892,212.94425945,0.00035284,2]
[341154947,1730479825932,321.748,0.0003,2]
[341154948,1730479827559,176.19225,0.0002803,2]
[341154964,1730479831415,-321.748,0.00036578,2]
[341154965,1730479831425,-280.302,0.0003678,2]
[341154966,1730479831471,-5395.26045893,0.0003678,2]
[341154967,1730479831481,-151.91,0.00036801,2]
[341154968,1730479831491,-553.8815,0.00036912,2]
[341154969,1730479831501,-237.3705,0.00036912,2]
[341154970,1730479831511,-200.0,0.00037133,2]
[341154971,1730479831521,-849.58,0.00037163,2]
[341154972,1730479831531,-9282.93657886,0.00037652,2]
[341154973,1730479831543,-4857.57952354,0.00037652,2]
[341154974,1730479831580,-3893.29292321,0.00037652,2]
[341154975,1730479831638,-12321.32097439,0.00037652,2]
[341154976,1730479831647,-150.0,0.00037706,7]
[341154977,1730479831657,-151.19,0.00037752,2]
[341154978,1730479831667,-151.91,0.00038871,2]
[341154979,1730479831676,-1000.0,0.00039319,2]
[341154980,1730479831686,-849.58,0.00039426,2]
[341154981,1730479831696,-1246.0,0.000395,2]
[341154982,1730479831705,-853.6794,0.00039888,7]
[341154983,1730479831715,-445.00175906,0.0004,2]
[341154984,1730479831725,-169.37,0.00040017,2]
[341154985,1730479831734,-153.0,0.00040782,2]
[341154986,1730479831744,-153.0,0.00040782,2]
[341154987,1730479831754,-153.0,0.00040782,2]
[341154988,1730479831763,-153.0,0.00040782,2]
[341154989,1730479831773,-876.9373,0.00040794,2]
[341154990,1730479831782,-977.6207,0.00040794,2]
[341154991,1730479831791,-7767.5734,0.00040795,2]
[341154992,1730479831800,-197.74,0.00040884,10]
[341154993,1730479831813,-6711.9823,0.00040894,2]
[341154995,1730479831822,-100000.0,0.00040894,2]
[341154997,1730479831831,-151.91,0.00040941,2]
[341154999,1730479831840,-153.0,0.0004096,2]
[341155001,1730479831850,-153.0,0.0004096,2]
[341155003,1730479831859,-153.0,0.0004096,2]
[341155005,1730479831869,-153.0,0.0004096,2]
[341155006,1730479831878,-153.0,0.0004096,2]
[341155007,1730479831887,-153.0,0.0004096,2]
[341155008,1730479831897,-500.0,0.00041095,3]
[341155009,1730479831906,-500.0,0.00041095,3]
[341155010,1730479831916,-163.7189918,0.00041095,3]
[341155011,1730479831926,-500.0,0.00041095,3]
[341155012,1730479831936,-915.63,0.00041095,3]
[341155013,1730479831945,-500.0,0.00041095,3]
[341155014,1730479831955,-500.0,0.00041095,3]
[341155015,1730479831966,-594.02,0.00041095,3]
[341155016,1730479831975,-500.0,0.00041095,3]
[341155017,1730479831985,-500.0,0.00041095,3]
[341155018,1730479831996,-559.23577244,0.00041095,3]
[341155019,1730479832007,-500.0,0.00041095,3]
[341155020,1730479832016,-500.0,0.00041095,3]
[341155021,1730479832026,-500.0,0.00041095,3]
[341155022,1730479832035,-500.0,0.00041095,3]
[341155023,1730479832044,-500.0,0.00041095,3]
[341155024,1730479832054,-500.0,0.00041095,3]
[341155025,1730479832070,-434.43,0.00041095,3]
[341155026,1730479832080,-500.0,0.00041095,3]
[341155027,1730479832090,-500.0,0.00041095,3]
[341155028,1730479832099,-500.0,0.00041095,3]
[341155029,1730479832108,-1904.03,0.00041095,3]
[341155030,1730479832118,-500.0,0.00041095,3]
[341155031,1730479832127,-500.0,0.00041095,3]
[341155032,1730479832136,-500.0,0.00041095,3]
[341155033,1730479832145,-625.65936171,0.00041095,3]
[341155034,1730479832154,-150.36,0.00041096,2]
[341155035,1730479832163,-500.0,0.00041369,3]
[341155036,1730479832173,-915.63,0.00041369,3]
[341155037,1730479832182,-500.0,0.00041369,3]
[341155038,1730479832191,-500.0,0.00041369,3]
[341155039,1730479832201,-500.0,0.00041369,3]
[341155040,1730479832210,-500.0,0.00041369,3]
[341155041,1730479832219,-500.0,0.00041369,3]
[341155042,1730479832228,-500.0,0.00041369,3]
[341155043,1730479832237,-500.0,0.00041369,3]
[341155044,1730479832246,-500.0,0.00041369,3]
[341155045,1730479832255,-500.0,0.00041369,3]
[341155046,1730479832264,-500.0,0.00041369,3]
[341155047,1730479832273,-1904.03,0.00041369,3]
[341155048,1730479832282,-500.0,0.00041369,3]
[341155049,1730479832291,-500.0,0.00041369,3]
[341155050,1730479832300,-645.98,0.00041369,3]
[341155051,1730479832314,-500.0,0.00041642,3]
[341155052,1730479832323,-500.0,0.00041642,3]
[341155053,1730479832332,-500.0,0.00041642,3]
[341155054,1730479832341,-486.76267352,0.00041642,3]
[341155055,1730479832350,-500.0,0.00041642,3]
[341155056,1730479832359,-500.0,0.00041642,3]
[341155057,1730479832368,-500.0,0.00041642,3]
[341155058,1730479832377,-500.0,0.00041642,3]
[341155059,1730479832386,-500.0,0.00041642,3]
[341155060,1730479832395,-362.36,0.00041642,3]
[341155061,1730479832404,-278.99512098,0.00041643,3]
[341155062,1730479832413,-915.63,0.00041643,3]
[341155063,1730479832422,-500.0,0.00041643,3]
[341155064,1730479832431,-500.0,0.00041643,3]
[341155065,1730479832440,-532.33566825,0.00041643,3]
[341155066,1730479832449,-193.10063735,0.00041643,3]
[341155067,1730479832459,-210.95455817,0.00041643,3]
[341155068,1730479832469,-499.88,0.00041643,3]
[341155069,1730479832478,-500.0,0.00041643,3]
[341155070,1730479832488,-403.29,0.00041643,3]
[341155071,1730479832497,-500.0,0.00041643,3]
[341155072,1730479832506,-500.0,0.00041643,3]
[341155073,1730479832515,-1904.03,0.00041643,3]
[341155074,1730479832524,-500.0,0.00041643,3]
[341155075,1730479832534,-500.0,0.00041643,3]
[341155076,1730479832543,-849.58,0.0004169,2]
[341155077,1730479832552,-500.0,0.00041916,3]
[341155078,1730479832565,-458.54138244,0.00041916,3]
[341155079,1730479837446,-500.0,0.00041095,3]
[341155080,1730479837455,-253.2,0.00041095,3]
[341155081,1730479837465,-500.0,0.00041369,3]
[341155082,1730479837475,-4.35,0.00041643,3]
[341155083,1730479837608,-469.693,0.00041643,3]
[341155084,1730479837664,-25.957,0.00041643,3]
[341155085,1730479837674,-41.45861756,0.00041916,3]
[341155086,1730479837683,-500.0,0.00041916,3]
[341155087,1730479837693,-500.0,0.00041916,3]
[341155088,1730479837703,-915.63,0.00041917,3]
[341155089,1730479837713,-500.0,0.00041917,3]
[341155090,1730479837723,-500.0,0.00041917,3]
[341155091,1730479837732,-500.0,0.00041917,3]
[341155092,1730479837742,-550.7696368,0.00041917,3]
[341155093,1730479837752,-500.0,0.00041917,3]
[341155094,1730479837761,-1904.03,0.00041917,3]
[341155095,1730479837770,-500.0,0.00041917,3]
[341155096,1730479837780,-500.0,0.00041917,3]
[341155097,1730479837789,-500.0,0.00041917,3]
[341155098,1730479837799,-152.0,0.00041932,3]
[341155099,1730479837811,-154.06606189,0.0004219,3]
[341155100,1730479837821,-500.0,0.0004219,3]
[341155101,1730479837827,-500.0,0.0004219,3]
[341155102,1730479837835,-500.0,0.0004219,3]
[341155103,1730479837845,-915.63,0.00042191,3]
[341155104,1730479837854,-500.0,0.00042191,3]
[341155105,1730479837863,-500.0,0.00042191,3]
[341155106,1730479837873,-500.0,0.00042191,3]
[341155107,1730479837882,-500.0,0.00042191,3]
[341155108,1730479837892,-1904.03,0.00042191,3]
[341155109,1730479837902,-500.0,0.00042191,3]
[341155110,1730479837911,-500.0,0.00042191,3]
[341155111,1730479837922,-500.0,0.00042191,3]
[341155112,1730479837932,-500.0,0.00042463,3]
[341155113,1730479837941,-500.0,0.00042464,3]
[341155114,1730479837950,-500.0,0.00042464,3]
[341155115,1730479837959,-500.0,0.00042464,3]
[341155116,1730479837969,-500.0,0.00042464,3]
[341155117,1730479837979,-500.0,0.00042464,3]
[341155118,1730479837988,-500.0,0.00042464,3]
[341155120,1730479837998,-500.0,0.00042464,3]
[341155121,1730479838007,-500.0,0.00042464,3]
[341155122,1730479838016,-500.0,0.00042464,3]
[341155123,1730479838025,-500.0,0.00042464,3]
[341155124,1730479838034,-500.0,0.00042464,3]
[341155125,1730479838043,-500.0,0.00042464,3]
[341155126,1730479838053,-500.0,0.00042464,3]
[341155127,1730479838065,-500.0,0.00042464,3]
[341155128,1730479838075,-500.0,0.00042464,3]
[341155129,1730479838084,-500.0,0.00042464,3]
[341155130,1730479838094,-500.0,0.00042464,3]
[341155131,1730479838103,-841.44,0.00042464,3]
[341155132,1730479838113,-915.63,0.00042465,3]